bitfinex/quotes_BTCUSD_20220405
["timestamp","ask_amount","ask_price","bid_price","bid_amount"]
[1649152471604,0.10904859,46594.0,46593.0,0.00077125]
[1649152472249,0.42968859,46594.0,46593.0,0.00077125]
[1649152474157,0.72968859,46594.0,46593.0,0.00077125]
[1649152474257,0.42968859,46594.0,46593.0,0.00077125]
[1649152477753,0.10904859,46594.0,46593.0,0.00077125]
[1649152477854,0.10904859,46594.0,46593.0,0.17741296]
[1649152478052,0.10904859,46594.0,46593.0,0.4111063]
[1649152478254,0.42968859,46594.0,46593.0,0.00077125]
[1649152478603,0.42968859,46594.0,46593.0,0.17742413]
[1649152479649,0.42968859,46594.0,46593.0,0.00077125]
[1649152479748,0.42968859,46594.0,46593.0,0.17742314]
[1649152479849,0.42968859,46594.0,46593.0,0.00077125]
[1649152480452,0.42968859,46594.0,46593.0,0.17742318]
[1649152481606,0.42968859,46594.0,46593.0,0.17944507]
[1649152481856,0.42968859,46594.0,46593.0,0.00279314]
[1649152488253,0.10904859,46594.0,46593.0,0.00279314]
[1649152488354,0.42968859,46594.0,46593.0,0.00279314]
[1649152488452,0.42968859,46594.0,46593.0,0.17944507]
[1649152488553,0.10904859,46594.0,46593.0,0.17944507]
[1649152488853,0.10904859,46594.0,46593.0,0.00279314]
[1649152489204,0.42968859,46594.0,46593.0,0.00279314]
[1649152489904,0.42968859,46594.0,46593.0,0.17944089]
[1649152490106,0.42968859,46594.0,46593.0,0.00279314]
[1649152490211,0.42968859,46594.0,46593.0,0.17914818]
[1649152490507,0.42968859,46594.0,46593.0,0.00250043]
[1649152490708,0.42968859,46594.0,46593.0,0.0026721]
[1649152494406,0.42968859,46594.0,46593.0,0.17931985]
[1649152494505,0.17639046,46597.0,46596.0,0.04091266]
[1649152494848,0.17639046,46597.0,46596.0,0.09091266]
[1649152496157,0.43048807,46598.0,46596.0,0.09091266]
[1649152496455,0.21,46598.0,46596.0,0.09091266]
[1649152496554,0.73048807,46598.0,46596.0,0.09091266]
[1649152496955,0.51,46598.0,46596.0,0.09091266]
[1649152497358,0.00255089,46597.0,46596.0,0.09351241]
[1649152497706,0.30255089,46597.0,46596.0,0.09351241]
[1649152497805,0.00255089,46597.0,46596.0,0.09351241]
[1649152498443,0.17893785,46597.0,46596.0,0.09351241]
[1649152500198,0.17893785,46597.0,46596.0,0.14351241]
[1649152501351,0.00255089,46597.0,46596.0,0.14351241]
[1649152501650,0.17894347,46597.0,46596.0,0.14351241]
[1649152501751,0.00255089,46597.0,46596.0,0.14351241]
[1649152501951,0.17894005,46597.0,46596.0,0.14351241]
[1649152502050,0.00255089,46597.0,46596.0,0.14351241]
[1649152502749,0.17894214,46597.0,46596.0,0.14351241]
[1649152503049,0.00255089,46597.0,46596.0,0.14351241]
[1649152504404,0.17894308,46597.0,46596.0,0.14351241]
[1649152505307,0.00255089,46597.0,46596.0,0.14351241]
[1649152506095,0.17894308,46597.0,46596.0,0.14351241]
[1649152506193,0.17894103,46597.0,46596.0,0.14351241]
[1649152506493,0.00255089,46597.0,46596.0,0.14351241]
[1649152507244,0.30255089,46597.0,46596.0,0.14351241]
[1649152508298,0.00255089,46597.0,46596.0,0.14351241]
[1649152508396,0.47894559,46597.0,46596.0,0.14351241]
[1649152508597,0.17894559,46597.0,46596.0,0.14351241]
[1649152508898,0.00255089,46597.0,46596.0,0.14351241]
[1649152510651,0.17894096,46597.0,46596.0,0.14351241]
[1649152510751,0.00255089,46597.0,46596.0,0.14351241]
[1649152512658,0.17894109,46597.0,46596.0,0.14351241]
[1649152512856,0.17835191,46597.0,46596.0,0.14351241]
[1649152513257,0.00196171,46597.0,46596.0,0.14351241]
[1649152514953,0.00196171,46597.0,46596.0,0.32016305]
[1649152515356,0.00196171,46597.0,46596.0,2.25870641]
[1649152515553,0.00196171,46597.0,46596.0,2.08205577]
[1649152515655,0.00196171,46597.0,46596.0,2.46983627]
[1649152516059,0.00196171,46597.0,46596.0,2.35721766]
[1649152516157,0.00196171,46597.0,46596.0,0.4186743]
[1649152516457,0.00196171,46597.0,46596.0,0.59528814]
[1649152516656,0.00196171,46597.0,46596.0,0.4186743]
[1649152516958,0.00196171,46597.0,46596.0,0.59528836]
[1649152518194,0.00196171,46597.0,46596.0,0.70834668]
[1649152518396,0.00196171,46597.0,46596.0,0.59528836]
[1649152518697,0.00196171,46597.0,46596.0,0.4186743]
[1649152520498,0.00196171,46597.0,46596.0,0.14351241]
[1649152523415,0.00196171,46597.0,46596.0,0.32012647]
[1649152523513,0.00196171,46597.0,46596.0,0.14351241]
[1649152523816,0.00196171,46597.0,46596.0,0.32012647]
[1649152524014,0.00196171,46597.0,46596.0,0.24351241]
[1649152524517,0.01747189,46598.0,46596.0,0.24351241]
[1649152525053,0.01747189,46598.0,46596.0,0.3201012]
[1649152525154,0.01747189,46598.0,46596.0,0.14351241]
[1649152525252,0.01747189,46598.0,46596.0,0.4201012]
[1649152525355,0.01747189,46598.0,46596.0,0.41979969]
[1649152525654,0.01747189,46598.0,46596.0,0.2432109]
[1649152526054,0.00208583,46597.0,46596.0,0.2432109]
[1649152526355,0.00208583,46597.0,46596.0,0.1432109]
[1649152527006,0.00090748,46597.0,46596.0,0.1432109]
[1649152527656,0.00196322,46597.0,46596.0,0.1432109]
[1649152538650,0.00174826,46597.0,46596.0,0.1432109]
[1649152543798,0.81849635,46597.0,46596.0,0.1432109]
[1649152546657,0.81826068,46597.0,46596.0,0.1432109]
[1649152547856,0.99462408,46597.0,46596.0,0.1432109]
[1649152548055,1.22137664,46597.0,46596.0,0.1432109]
[1649152549356,1.04501324,46597.0,46596.0,0.1432109]
[1649152549558,1.22137664,46597.0,46596.0,0.1432109]
[1649152549758,1.04501324,46597.0,46596.0,0.1432109]
[1649152549859,1.22137664,46597.0,46596.0,0.1432109]
[1649152549958,1.04501324,46597.0,46596.0,0.1432109]
[1649152550261,1.04501324,46597.0,46596.0,0.09351241]
[1649152550369,1.04501324,46597.0,46591.0,0.17716678]
[1649152550370,0.06640283,46595.0,46591.0,0.17716678]
[1649152550460,0.06640283,46595.0,46591.0,0.22716678]
[1649152551202,0.06640283,46595.0,46592.0,0.17658879]
[1649152551349,0.06640283,46595.0,46592.0,0.22658879]
[1649152551750,0.28517129,46593.0,46592.0,0.22658879]
[1649152552152,0.58517129,46593.0,46592.0,0.17658879]
[1649152552251,0.58517129,46593.0,46591.0,0.00057799]
[1649152552350,0.3,46592.0,46591.0,0.00057799]
[1649152552551,0.28517129,46593.0,46591.0,0.00057799]
[1649152552650,0.28517129,46593.0,46589.0,0.17658879]
[1649152552753,0.28517129,46593.0,46588.0,0.17712255]
[1649152552951,0.28517129,46593.0,46588.0,0.17658879]
[1649152553051,0.54628444,46593.0,46588.0,0.17712254]
[1649152553152,0.3,46592.0,46588.0,0.00053375]
[1649152553553,0.28517129,46593.0,46588.0,0.17712254]
[1649152553707,0.28517129,46593.0,46588.0,0.22712254]
[1649152554153,0.28517129,46593.0,46588.0,0.22658879]
[1649152554356,0.28517129,46593.0,46588.0,0.22712254]
[1649152554452,0.11363096,46593.0,46589.0,0.17658879]
[1649152554552,0.11363096,46593.0,46588.0,0.05053375]
[1649152554553,0.11363096,46593.0,46590.0,0.17658837]
[1649152554698,0.11363096,46593.0,46589.0,0.17658837]
[1649152554797,0.11363096,46593.0,46589.0,0.22658837]
[1649152555649,0.11363096,46593.0,46588.0,0.17712212]
[1649152556051,0.11363096,46593.0,46589.0,0.17658837]
[1649152556147,0.11363096,46593.0,46588.0,0.17712212]
[1649152556251,0.11363096,46593.0,46589.0,0.17658837]
[1649152556348,0.11363096,46593.0,46589.0,0.05]
[1649152556448,0.11363096,46593.0,46590.0,0.17658837]
[1649152556551,0.3,46592.0,46590.0,0.17658837]
[1649152556652,0.3,46592.0,46590.0,0.00144053]
[1649152556850,0.11363096,46593.0,46590.0,0.00144053]
[1649152557752,0.28997991,46593.0,46590.0,0.00144053]
[1649152557852,0.24131022,46592.0,46590.0,0.00144053]
[1649152557952,0.28997991,46593.0,46590.0,0.00144053]
[1649152558153,0.3,46592.0,46590.0,0.00144053]
[1649152558405,0.0428,46591.0,46590.0,0.00144053]
[1649152558506,0.3536642,46591.0,46590.0,0.00144053]
[1649152558610,0.51914895,46591.0,46590.0,0.00144053]
[1649152558705,0.35366385,46591.0,46590.0,0.00144053]
[1649152558905,0.5741181,46591.0,46590.0,0.00144053]
[1649152559155,0.5741181,46591.0,46586.0,0.01073]
[1649152559156,0.00035685,46589.0,46588.0,0.00053375]
[1649152559255,0.40794558,46589.0,46588.0,0.00053375]
[1649152559355,0.41880861,46589.0,46588.0,0.00053375]
[1649152559456,0.46160861,46589.0,46588.0,0.00053375]
[1649152559558,0.28536593,46589.0,46588.0,0.00053375]
[1649152559656,0.05401988,46589.0,46588.0,0.00053375]
[1649152560061,0.05401988,46589.0,46586.0,0.01073]
[1649152560159,0.04315685,46589.0,46586.0,0.01073]
[1649152560261,0.04315685,46589.0,46586.0,0.01126376]
[1649152560611,0.00035685,46589.0,46586.0,0.01126376]
[1649152561258,0.00035685,46589.0,46586.0,0.01073]
[1649152562495,0.00035685,46589.0,46587.0,0.22404336]
[1649152562596,0.00035685,46589.0,46586.0,0.01073]
[1649152567555,0.11363096,46593.0,46586.0,0.01073]
[1649152568656,0.11363096,46593.0,46587.0,0.00053375]
[1649152569357,0.12436096,46593.0,46587.0,0.00053375]
[1649152569698,0.12436096,46593.0,46585.0,0.05]
[1649152569899,0.12436096,46593.0,46588.0,0.00053375]
[1649152570750,0.01073,46592.0,46588.0,0.00053375]
[1649152570848,0.11363096,46593.0,46588.0,0.00053375]
[1649152570949,0.12436096,46593.0,46584.0,0.27221172]
[1649152571049,0.12436096,46593.0,46585.0,0.05]
[1649152571148,0.12436096,46593.0,46588.0,0.00053375]
[1649152572100,0.12436096,46593.0,46585.0,0.05]
[1649152572299,0.12436096,46593.0,46588.0,0.00053375]
[1649152573301,0.12436096,46593.0,46583.0,0.22651334]
[1649152573557,0.12436096,46593.0,46588.0,0.00053375]
[1649152573960,0.11363096,46593.0,46588.0,0.00053375]
[1649152574106,0.29082803,46592.0,46588.0,0.00053375]
[1649152574208,0.11363096,46593.0,46588.0,0.00053375]
[1649152574559,0.11363096,46593.0,46582.0,0.22651334]
[1649152574658,0.11363096,46593.0,46582.0,0.17651334]
[1649152574757,0.11363096,46593.0,46588.0,0.00053375]
[1649152575407,0.39664531,46593.0,46588.0,0.00053375]
[1649152575712,0.39664531,46593.0,46581.0,0.17651334]
[1649152575812,0.39664531,46593.0,46581.0,0.22651334]
[1649152575913,0.40737531,46593.0,46588.0,0.00053375]
[1649152576012,0.39664531,46593.0,46588.0,0.00053375]
[1649152576263,0.11363096,46593.0,46588.0,0.00053375]
[1649152576862,0.11363096,46593.0,46582.0,0.17651334]
[1649152577208,0.11363096,46593.0,46588.0,0.00053375]
[1649152577710,1.0,46592.0,46581.0,0.2094432]
[1649152578111,1.0,46592.0,46581.0,0.20730789]
[1649152578459,1.0,46592.0,46582.0,0.17651334]
[1649152578559,1.01073,46592.0,46582.0,0.17651334]
[1649152578763,1.26779992,46592.0,46582.0,0.46753055]
[1649152578863,1.01073,46592.0,46582.0,0.29101721]
[1649152579016,1.31073,46592.0,46582.0,0.46753055]
[1649152579215,0.31073,46592.0,46582.0,0.46753055]
[1649152580366,0.01073,46592.0,46582.0,0.56753055]
[1649152580516,0.11363096,46593.0,46583.0,0.17651334]
[1649152580665,0.11363096,46593.0,46585.0,0.00057036]
[1649152581000,0.12436096,46593.0,46585.0,0.00057036]
[1649152581752,0.12436096,46593.0,46583.0,0.22651334]
[1649152581953,0.12436096,46593.0,46586.0,0.00057035]
[1649152582104,0.11363096,46593.0,46586.0,0.00057035]
[1649152582605,0.16363096,46593.0,46586.0,0.00057035]
[1649152582703,0.3,46592.0,46586.0,0.00057035]
[1649152582905,0.3,46592.0,46581.0,0.17651334]
[1649152583006,0.3,46592.0,46580.0,0.17651334]
[1649152583205,0.3,46592.0,46586.0,0.00056799]
[1649152583708,0.60267591,46592.0,46586.0,0.00056799]
[1649152583909,0.3,46592.0,46586.0,0.00056799]
[1649152584162,0.31073,46592.0,46582.0,0.25143377]
[1649152584356,0.31073,46592.0,46586.0,0.00056799]
[1649152584557,0.03619269,46581.0,46580.0,0.17651334]
[1649152584964,0.03619269,46581.0,46580.0,0.39559427]
[1649152588167,0.03619269,46581.0,46580.0,0.21908093]
[1649152589904,0.03619269,46581.0,46580.0,0.54027693]
[1649152590002,0.03619269,46581.0,46580.0,0.4397226]
[1649152590107,0.03619269,46581.0,46580.0,0.31908093]
[1649152590407,0.03619269,46581.0,46580.0,0.64027693]
[1649152590501,0.03619269,46581.0,46580.0,0.31908093]
[1649152590804,0.03619269,46581.0,46580.0,0.64699914]
[1649152593610,0.03619269,46581.0,46580.0,0.70064914]
[1649152595169,0.03619269,46581.0,46580.0,0.96541915]
[1649152595267,0.03619269,46581.0,46580.0,1.28661515]
[1649152595366,0.03619269,46581.0,46580.0,1.46059515]
[1649152595468,0.03619269,46581.0,46580.0,1.70537803]
[1649152595566,0.03619269,46581.0,46580.0,1.74817803]
[1649152595943,0.03619269,46581.0,46580.0,1.45013631]
[1649152596545,0.03619269,46581.0,46580.0,1.38562969]
[1649152596792,0.03619269,46581.0,46580.0,1.36679969]
[1649152597897,0.03619269,46581.0,46580.0,1.67593635]
[1649152597995,0.03619269,46581.0,46580.0,1.36679969]
[1649152598398,0.03619269,46581.0,46580.0,1.67593566]
[1649152599401,0.03619269,46581.0,46580.0,1.67594833]
[1649152600155,0.03619269,46581.0,46580.0,1.36681987]
[1649152600756,0.03619269,46581.0,46580.0,1.67591597]
[1649152601708,0.03619269,46581.0,46580.0,1.72956797]
[1649152602014,0.03619269,46581.0,46580.0,1.43132849]
[1649152602109,0.03619269,46581.0,46580.0,2.08552849]
[1649152602310,0.03579231,46581.0,46580.0,2.08552849]
[1649152602759,0.03579231,46581.0,46580.0,1.43132849]
[1649152603857,0.03579231,46581.0,46580.0,1.42047187]
[1649152603955,0.03579231,46581.0,46580.0,1.36681987]
[1649152604056,0.03579231,46581.0,46580.0,1.67589637]
[1649152604655,0.03579231,46581.0,46580.0,1.36681987]
[1649152604854,0.03579231,46581.0,46580.0,1.67591228]
[1649152605705,0.03579231,46581.0,46580.0,1.67901046]
[1649152605805,0.03579231,46581.0,46580.0,1.63621046]
[1649152606311,0.03579231,46581.0,46580.0,1.32711805]
[1649152606408,0.03579231,46581.0,46580.0,1.63620157]
[1649152606962,0.03579231,46581.0,46580.0,1.32711805]
[1649152607603,0.03579231,46581.0,46580.0,1.63619482]
[1649152608458,0.03579231,46581.0,46580.0,1.14527332]
[1649152608556,0.03579231,46581.0,46580.0,1.64023551]
[1649152610210,0.03579231,46581.0,46580.0,1.65109318]
[1649152610613,0.03579231,46581.0,46580.0,1.34201191]
[1649152612171,0.03579231,46581.0,46580.0,1.30201191]
[1649152612314,0.03579231,46581.0,46580.0,1.29201191]
[1649152612517,0.03579231,46581.0,46580.0,1.29201214]
[1649152612616,0.03579231,46581.0,46580.0,1.28049092]
[1649152612716,0.03579231,46581.0,46580.0,1.29134871]
[1649152613571,0.03579231,46581.0,46580.0,1.28049092]
[1649152614120,0.03579231,46581.0,46580.0,1.32961637]
[1649152614571,0.03579231,46581.0,46580.0,1.63868005]
[1649152617407,0.03579231,46581.0,46580.0,1.64953795]
[1649152617553,0.03579231,46581.0,46580.0,1.6510336]
[1649152617752,0.03579231,46581.0,46580.0,1.6401757]
[1649152618903,0.03579231,46581.0,46580.0,1.6938227]
[1649152619005,0.03579231,46581.0,46580.0,1.38475902]
[1649152619152,0.03579231,46581.0,46580.0,2.03895902]
[1649152619254,0.03579231,46581.0,46580.0,1.38475902]
[1649152620854,0.03579231,46581.0,46580.0,1.69381063]
[1649152621157,0.03579231,46581.0,46580.0,1.38475902]
[1649152621256,0.03579231,46581.0,46580.0,1.69380419]
[1649152621356,0.03579231,46581.0,46580.0,1.38475902]
[1649152622156,0.03579231,46581.0,46580.0,1.69380503]
[1649152622702,0.03579231,46581.0,46580.0,1.38475902]
[1649152622801,0.03579231,46581.0,46580.0,1.69380334]
[1649152623902,0.03579231,46581.0,46580.0,1.38475902]
[1649152625901,0.03579231,46581.0,46580.0,1.69380439]
[1649152626104,0.03579231,46581.0,46580.0,1.38475902]
[1649152628509,0.03579231,46581.0,46580.0,1.16567809]
[1649152628664,0.03579231,46581.0,46580.0,1.34709883]
[1649152628760,0.03579231,46581.0,46580.0,1.02590283]
[1649152629683,0.03579231,46581.0,46580.0,1.27960453]
[1649152630140,0.03579231,46581.0,46580.0,1.60080053]
[1649152630537,0.03579231,46581.0,46580.0,1.29175279]
[1649152632451,0.03579231,46581.0,46580.0,1.40175436]
[1649152633199,0.02990016,46581.0,46580.0,1.40175436]
[1649152633306,0.02990016,46581.0,46580.0,1.45540136]
[1649152633858,0.02990016,46581.0,46580.0,1.34539979]
[1649152635316,0.02990016,46581.0,46580.0,1.29175279]
[1649152636116,0.02942878,46581.0,46580.0,1.29175279]
[1649152637402,0.02942878,46581.0,46580.0,1.34540179]
[1649152640930,0.02942878,46581.0,46580.0,1.24390614]
[1649152642134,0.02942878,46581.0,46580.0,1.34390614]
[1649152642385,0.02942878,46581.0,46580.0,1.29183462]
[1649152642686,0.02942878,46581.0,46580.0,1.34548362]
[1649152642787,0.02942878,46581.0,46580.0,1.37798362]
[1649152644137,0.02942878,46581.0,46580.0,1.37484583]
[1649152646407,0.02942878,46581.0,46580.0,1.34234583]
[1649152648753,0.02942878,46581.0,46580.0,1.28869683]
[1649152649403,0.02942878,46581.0,46580.0,1.34234583]
[1649152649906,0.02942878,46581.0,46580.0,1.28869683]
[1649152657207,0.02942878,46581.0,46580.0,1.59786294]
[1649152657306,0.02942878,46581.0,46580.0,1.28869683]
[1649152657406,0.02942878,46581.0,46580.0,1.59786317]
[1649152657606,0.02942878,46581.0,46580.0,1.28869683]
[1649152661007,0.02942878,46581.0,46580.0,1.59785799]
[1649152661307,0.02942878,46581.0,46580.0,1.28869683]
[1649152662509,0.02942878,46581.0,46580.0,1.59789684]
[1649152662610,0.02942878,46581.0,46580.0,1.28869683]
[1649152664408,0.02942878,46581.0,46580.0,1.34419632]
[1649152664511,0.02942878,46581.0,46580.0,1.03499513]
[1649152664609,0.02942878,46581.0,46580.0,1.34419915]
[1649152664710,0.02942878,46581.0,46580.0,1.03499513]
[1649152664914,0.02936426,46581.0,46580.0,1.03499513]
[1649152665412,0.02936426,46581.0,46580.0,1.33862868]
[1649152666513,0.02936426,46581.0,46580.0,1.03499513]
[1649152666614,0.07936426,46581.0,46580.0,1.03499513]
[1649152667463,0.07936426,46581.0,46580.0,1.29045508]
[1649152667765,0.07936426,46581.0,46580.0,1.59963417]
[1649152668014,0.07936426,46581.0,46580.0,1.29045508]
[1649152669768,0.07936426,46581.0,46580.0,1.59963225]
[1649152670116,0.07936426,46581.0,46580.0,1.3441723]
[1649152671360,0.07936426,46581.0,46580.0,1.61530779]
[1649152672763,0.07936426,46581.0,46580.0,1.1202497]
[1649152672867,0.07936426,46581.0,46580.0,1.23959028]
[1649152673267,0.07936426,46581.0,46580.0,1.1202497]
[1649152673367,0.07936426,46581.0,46580.0,1.29323378]
[1649152676292,0.07936426,46581.0,46580.0,1.02209829]
[1649152676742,0.07936426,46581.0,46580.0,1.3312448]
[1649152677042,0.07436426,46581.0,46580.0,1.3312448]
[1649152677342,0.07436426,46581.0,46580.0,1.2775958]
[1649152679053,0.07436426,46581.0,46580.0,0.96844929]
[1649152681613,0.07436426,46581.0,46580.0,1.27764101]
[1649152682918,0.07436426,46581.0,46580.0,0.96844929]
[1649152685471,0.07436426,46581.0,46580.0,1.25151215]
[1649152685570,0.07436426,46581.0,46580.0,0.96844929]
[1649152686606,0.07436426,46581.0,46580.0,1.24818584]
[1649152690353,0.07436426,46581.0,46580.0,0.96844929]
[1649152691855,0.06724326,46581.0,46580.0,0.96844929]
[1649152692359,0.06724326,46581.0,46580.0,1.2776598]
[1649152692708,0.06724326,46581.0,46580.0,1.58486038]
[1649152693009,0.06724326,46581.0,46580.0,1.2776598]
[1649152693110,0.06724326,46581.0,46580.0,0.96844929]
[1649152694955,0.06688973,46581.0,46580.0,0.96844929]
[1649152695156,0.06688973,46581.0,46580.0,1.27764848]
[1649152695458,0.06688973,46581.0,46580.0,1.28086472]
[1649152696313,0.06688973,46581.0,46580.0,0.99099757]
[1649152696411,0.06688973,46581.0,46580.0,1.10019676]
[1649152696517,0.36688973,46581.0,46580.0,0.33113445]
[1649152696609,0.36688973,46581.0,46580.0,0.59617989]
[1649152696811,0.36688973,46581.0,46580.0,0.33113445]
[1649152697294,0.36688973,46581.0,46580.0,0.00321624]
[1649152697895,0.00358906,46579.0,46578.0,0.00053162]
[1649152697995,0.00358906,46579.0,46578.0,0.22136881]
[1649152698198,0.00358906,46579.0,46578.0,0.10053162]
[1649152698298,0.00358906,46579.0,46578.0,0.05053162]
[1649152698396,0.00358906,46579.0,46578.0,0.10053162]
[1649152698497,0.00358906,46579.0,46578.0,0.05053162]
[1649152698797,0.00358906,46579.0,46578.0,0.00053162]
[1649152699397,0.00358906,46579.0,46577.0,0.2]
[1649152699548,0.00358906,46579.0,46578.0,0.22081517]
[1649152702075,0.00434516,46579.0,46578.0,0.22081517]
[1649152702172,0.00434516,46579.0,46577.0,0.42081517]
[1649152702273,0.00434516,46579.0,46577.0,0.32081517]
[1649152702426,0.00434516,46579.0,46577.0,0.42081517]
[1649152703478,0.00434516,46579.0,46577.0,0.2]
[1649152703576,0.00434516,46579.0,46577.0,0.42081517]
[1649152704226,0.00434516,46579.0,46578.0,0.17662116]
[1649152704959,0.00434516,46579.0,46577.0,0.2]
[1649152705062,0.00434516,46579.0,46578.0,0.17662142]
[1649152705360,0.00434516,46579.0,46577.0,0.2]
[1649152705463,0.00434516,46579.0,46577.0,0.1]
[1649152705759,0.00434516,46579.0,46577.0,0.053659]
[1649152705861,0.00434516,46579.0,46577.0,0.103659]
[1649152705961,0.00434516,46579.0,46577.0,0.05]
[1649152706161,0.00434516,46579.0,46577.0,0.34314416]
[1649152706261,0.00434516,46579.0,46576.0,0.42134918]
[1649152706362,0.00434516,46579.0,46576.0,0.41634918]
[1649152706711,0.00434516,46579.0,46576.0,0.41581517]
[1649152708618,0.00434516,46579.0,46577.0,0.17660121]
[1649152708816,0.00434516,46579.0,46577.0,0.22660121]
[1649152709418,0.00434516,46579.0,46576.0,0.19553375]
[1649152709643,0.2885788,46577.0,46576.0,0.19553375]
[1649152709719,0.00434516,46579.0,46576.0,0.19553375]
[1649152709971,0.00434516,46579.0,46576.0,0.27213496]
[1649152710267,0.00434516,46579.0,46577.0,0.17660121]
[1649152710372,0.00434516,46579.0,46577.0,0.22660121]
[1649152710717,0.00434516,46579.0,46578.0,0.17660121]
[1649152710817,0.00434516,46579.0,46578.0,0.22660121]
[1649152711021,0.00434516,46579.0,46578.0,0.05]
[1649152711122,0.00434516,46579.0,46577.0,0.22660121]
[1649152712213,0.00434516,46579.0,46577.0,0.27660121]
[1649152712318,0.00434516,46579.0,46577.0,0.1]
[1649152712512,0.00434516,46579.0,46576.0,0.27719043]
[1649152712713,0.00434516,46579.0,46576.0,0.27660121]
[1649152713115,0.00434516,46579.0,46576.0,0.1]
[1649152713215,0.00434516,46579.0,46576.0,0.05]
[1649152713413,0.00434516,46579.0,46576.0,0.22660121]
[1649152713717,0.20434516,46579.0,46576.0,0.17660121]
[1649152713817,0.50434516,46579.0,46575.0,0.17719044]
[1649152713919,0.2,46576.0,46575.0,0.17660121]
[1649152714020,0.53114611,46576.0,46575.0,0.17660121]
[1649152714118,0.57394611,46576.0,46575.0,0.00058923]
[1649152714872,0.94222404,46576.0,46575.0,0.00058923]
[1649152714973,0.95309022,46576.0,46575.0,0.00058923]
[1649152715071,0.9530901,46576.0,46575.0,0.00058923]
[1649152715175,0.9530901,46576.0,46568.0,0.001]
[1649152715274,0.053682,46575.0,46568.0,0.001]
[1649152715371,0.053682,46575.0,46573.0,0.00058924]
[1649152715474,0.0428,46574.0,46573.0,0.00058924]
[1649152715572,0.3428,46574.0,46573.0,0.00058924]
[1649152715928,0.58628311,46574.0,46573.0,0.00058924]
[1649152716327,0.58628311,46574.0,46568.0,0.001]
[1649152716529,0.58628311,46574.0,46571.0,0.00054545]
[1649152717534,0.5869938,46574.0,46568.0,0.001]
[1649152717733,0.5869938,46574.0,46570.0,0.00054546]
[1649152717831,0.34351069,46574.0,46570.0,0.00054546]
[1649152718682,0.34351069,46574.0,46568.0,0.001]
[1649152718884,0.34351069,46574.0,46570.0,0.00054546]
[1649152719716,0.34293867,46574.0,46570.0,0.00054546]
[1649152719916,0.34293867,46574.0,46568.0,0.001]
[1649152720117,0.34293867,46574.0,46570.0,0.00053]
[1649152720717,0.34293867,46574.0,46570.0,0.00043]
[1649152721116,0.34293867,46574.0,46568.0,0.001]
[1649152721316,0.30013867,46574.0,46568.0,0.001]
[1649152721766,0.30071069,46574.0,46568.0,0.001]
[1649152722617,0.00071069,46574.0,46568.0,0.001]
[1649152723217,0.00071069,46574.0,46568.0,0.28434719]
[1649152723319,0.00071069,46574.0,46568.0,0.33434719]
[1649152723763,0.00071069,46574.0,46569.0,0.00060262]
[1649152723864,0.064422,46575.0,46569.0,0.00060262]
[1649152724066,0.364422,46575.0,46569.0,0.00060262]
[1649152724818,0.064422,46575.0,46568.0,0.05467]
[1649152724919,0.053682,46575.0,46570.0,0.00060262]
[1649152725772,0.28397232,46574.0,46570.0,0.00060262]
[1649152725972,0.28397232,46574.0,46568.0,0.05467]
[1649152726072,0.3,46574.0,46568.0,0.05467]
[1649152726177,0.3,46574.0,46570.0,0.00060261]
[1649152726273,0.28059798,46568.0,46567.0,0.1]
[1649152726475,0.07002888,46568.0,46567.0,0.1]
[1649152727022,0.07002888,46568.0,46566.0,0.051]
[1649152727970,0.22357031,46577.0,46567.0,0.4]
[1649152728217,0.01074,46576.0,46567.0,0.55]
[1649152728519,0.01074,46576.0,46568.0,0.00058179]
[1649152728620,0.053673,46570.0,46568.0,0.00058179]
[1649152729222,0.2822668,46569.0,46568.0,0.00058179]
[1649152729520,0.2822668,46569.0,46566.0,0.101]
[1649152729521,0.2822668,46569.0,46566.0,0.051]
[1649152729724,0.2822668,46569.0,46566.0,0.05158179]
[1649152730223,0.2822668,46569.0,46566.0,0.31900608]
[1649152730322,0.2822668,46569.0,46566.0,0.41900608]
[1649152730422,0.2822668,46569.0,46566.0,0.59559505]
[1649152730725,0.2822668,46569.0,46566.0,0.32758897]
[1649152730824,0.2822668,46569.0,46566.0,0.151]
[1649152731517,0.2822668,46569.0,46566.0,0.051]
[1649152731715,0.2822668,46569.0,46566.0,0.27845949]
[1649152731816,0.2822668,46569.0,46566.0,0.33213249]
[1649152731915,0.2822668,46569.0,46567.0,0.05]
[1649152733318,0.2822668,46569.0,46566.0,0.10156284]
[1649152733417,0.2822668,46569.0,46566.0,0.05156284]
[1649152733567,0.2822668,46569.0,46566.0,0.00156284]
[1649152734371,0.2822668,46569.0,46566.0,0.001]
[1649152735068,0.2822668,46569.0,46566.0,0.17758897]
[1649152735371,0.2822668,46569.0,46567.0,0.21983697]
[1649152735672,0.2822668,46569.0,46567.0,0.31983697]
[1649152735775,0.053673,46570.0,46567.0,0.31983697]
[1649152735873,0.053673,46570.0,46567.0,0.47350697]
[1649152736773,0.053673,46570.0,46567.0,0.65009594]
[1649152737624,0.053673,46570.0,46567.0,0.25367]
[1649152737722,0.053673,46570.0,46567.0,0.15367]
[1649152738424,0.053673,46570.0,46567.0,0.33025897]
[1649152738527,0.053673,46570.0,46567.0,0.43025897]
[1649152738625,0.053673,46570.0,46567.0,0.70436085]
[1649152739932,0.053673,46570.0,46567.0,0.65069085]
[1649152740277,0.053673,46570.0,46568.0,0.17658897]
[1649152740681,0.053673,46570.0,46567.0,0.27658897]
[1649152740780,0.053673,46570.0,46567.0,0.17658897]
[1649152740928,0.053673,46570.0,46567.0,0.27658897]
[1649152741432,0.053673,46570.0,46567.0,0.22658897]
[1649152744167,0.053673,46570.0,46567.0,0.27658897]
[1649152745218,0.053673,46570.0,46568.0,0.17658897]
[1649152745943,0.3,46569.0,46568.0,0.17658897]
[1649152746037,0.3,46569.0,46566.0,0.00156951]
[1649152746587,0.3,46569.0,46566.0,0.001]
[1649152751080,0.053673,46570.0,46566.0,0.001]
[1649152751983,0.05358579,46570.0,46566.0,0.001]
[1649152753921,0.05358579,46570.0,46566.0,0.0015889]
[1649152754872,0.05358579,46570.0,46566.0,0.001]
[1649152755074,0.05358579,46570.0,46566.0,0.0015889]
[1649152755874,0.01074,46571.0,46566.0,0.0015889]
[1649152756021,0.2595841,46572.0,46566.0,0.0015889]
[1649152756121,0.2595841,46572.0,46566.0,0.17758897]
[1649152756224,0.2595841,46572.0,46568.0,0.17658897]
[1649152756470,0.5595841,46572.0,46568.0,0.17658897]
[1649152756571,0.2595841,46572.0,46568.0,0.17658897]
[1649152756671,0.5595841,46572.0,46568.0,0.17658897]
[1649152756778,0.2595841,46572.0,46567.0,0.17658897]
[1649152756872,0.2595841,46572.0,46566.0,0.17817786]
[1649152756873,0.03114838,46571.0,46566.0,0.17817786]
[1649152757300,0.03114838,46571.0,46566.0,0.17758897]
[1649152757500,0.5595841,46572.0,46566.0,0.17815532]
[1649152758003,0.05367,46573.0,46566.0,0.17815532]
[1649152758103,0.05367,46573.0,46567.0,0.17658897]